[Event "Titled Tuesday Blitz November 08 Early 2022"]
[White "Fier, Alexandr"]
[Black "Svane, Rasmus"]
[WhiteFideId "2107139"]
[BlackFideId "4657101"]
[WhiteElo "2617"]
[BlackElo "2674"]
[Result "0-1"]
[Round "03"]
[TimeControl "180+1"]
[Date "2022.11.08"]
[WhiteClock "0:00:15"]
[BlackClock "0:00:21"]

1. d4 {[%clk 0:03:00]}  Nf6 {[%clk 0:03:00]} 2. c4 {[%clk 0:03:01]}  e6 {[%clk 0:03:00]} 3. Nc3 {[%clk 0:03:02]}  Bb4 {[%clk 0:03:00]} 4. e3 {[%clk 0:03:02]}  O-O {[%clk 0:03:00]} 5. Ne2 {[%clk 0:03:03]}  Re8 {[%clk 0:02:58]} 6. a3 {[%clk 0:03:02]}  Bf8 {[%clk 0:02:59]} 7. Ng3 {[%clk 0:03:03]}  d5 {[%clk 0:02:58]} 8. Be2 {[%clk 0:03:03]}  c5 {[%clk 0:02:57]} 9. dxc5 {[%clk 0:03:00]}  Bxc5 {[%clk 0:02:50]} 10. b4 {[%clk 0:03:00]}  Bb6 {[%clk 0:02:48]} 11. O-O {[%clk 0:02:53]}  Nc6 {[%clk 0:02:48]} 12. cxd5 {[%clk 0:02:52]}  exd5 {[%clk 0:02:49]} 13. Na4 {[%clk 0:02:47]}  Bc7 {[%clk 0:01:53]} 14. Bb2 {[%clk 0:02:47]}  Be5 {[%clk 0:01:52]} 15. Bf3 {[%clk 0:02:37]}  Bxb2 {[%clk 0:01:51]} 16. Nxb2 {[%clk 0:02:36]}  Ne5 {[%clk 0:01:46]} 17. Be2 {[%clk 0:02:30]}  Be6 {[%clk 0:01:43]} 18. Rc1 {[%clk 0:02:28]}  a5 {[%clk 0:01:36]} 19. b5 {[%clk 0:02:27]}  Qd6 {[%clk 0:01:36]} 20. a4 {[%clk 0:02:19]}  Rac8 {[%clk 0:01:33]} 21. Qd4 {[%clk 0:02:12]}  Ned7 {[%clk 0:01:12]} 22. Nd3 {[%clk 0:02:07]}  b6 {[%clk 0:01:13]} 23. Nf4 {[%clk 0:02:06]}  Nc5 {[%clk 0:01:05]} 24. Ngh5 {[%clk 0:01:51]}  Nxh5 {[%clk 0:00:57]} 25. Nxh5 {[%clk 0:01:51]}  f6 {[%clk 0:00:58]} 26. Nf4 {[%clk 0:01:49]}  Bf7 {[%clk 0:00:56]} 27. Qd1 {[%clk 0:01:10]}  d4 {[%clk 0:00:52]} 28. Qxd4 {[%clk 0:01:04]}  Qxd4 {[%clk 0:00:50]} 29. exd4 {[%clk 0:01:05]}  Nxa4 {[%clk 0:00:50]} 30. Bg4 {[%clk 0:01:00]}  Rxc1 {[%clk 0:00:46]} 31. Rxc1 {[%clk 0:01:01]}  Nc3 {[%clk 0:00:47]} 32. h4 {[%clk 0:00:55]}  Nd5 {[%clk 0:00:46]} 33. Nxd5 {[%clk 0:00:42]}  Bxd5 {[%clk 0:00:47]} 34. Bd7 {[%clk 0:00:42]}  Rd8 {[%clk 0:00:45]} 35. Bc6 {[%clk 0:00:42]}  a4 {[%clk 0:00:37]} 36. Ra1 {[%clk 0:00:32]}  Bb3 {[%clk 0:00:37]} 37. d5 {[%clk 0:00:32]}  Kf7 {[%clk 0:00:36]} 38. f4 {[%clk 0:00:31]}  Ke7 {[%clk 0:00:36]} 39. g4 {[%clk 0:00:30]}  Kd6 {[%clk 0:00:37]} 40. Kf2 {[%clk 0:00:31]}  Kc5 {[%clk 0:00:37]} 41. Ke3 {[%clk 0:00:28]}  Kc4 {[%clk 0:00:36]} 42. Ke4 {[%clk 0:00:28]}  Kc3 {[%clk 0:00:31]} 43. Kf5 {[%clk 0:00:25]}  Kb2 {[%clk 0:00:30]} 44. Rxa4 {[%clk 0:00:14]}  Bxa4 {[%clk 0:00:29]} 45. Ke6 {[%clk 0:00:15]}  Bb3 {[%clk 0:00:22]} 46. g5 {[%clk 0:00:15]}  fxg5 {[%clk 0:00:21]} 47. hxg5 {[%clk 0:00:16]}  g6 {[%clk 0:00:20]} 48. Ke7 {[%clk 0:00:12]}  Rxd5 {[%clk 0:00:18]} 49. Bxd5 {[%clk 0:00:12]}  Bxd5 {[%clk 0:00:19]} 50. Kd6 {[%clk 0:00:13]}  Bc4 {[%clk 0:00:19]} 51. Kc7 {[%clk 0:00:14]}  Kc3 {[%clk 0:00:20]} 52. Kxb6 {[%clk 0:00:15]}  Kd4 {[%clk 0:00:20]} 53. Kc6 {[%clk 0:00:15]}  Bxb5+ {[%clk 0:00:20]} 54. Kxb5 {[%clk 0:00:15]}  Ke4 {[%clk 0:00:21]} 0-1


[Site "https://www.chess.com"]

[Event "Titled Tuesday Blitz November 08 Early 2022"]
[White "Firat, Burak"]
[Black "Begunov, Konstantin"]
[WhiteFideId "6305881"]
[BlackFideId "4118510"]
[WhiteElo "2392"]
[BlackElo "2140"]
[Result "1-0"]
[Round "03"]
[TimeControl "180+1"]
[Date "2022.11.09"]
[WhiteClock "0:01:46"]
[BlackClock "0:00:52"]

1. Nf3 {[%clk 0:03:00]}  d5 {[%clk 0:02:59]} 2. g3 {[%clk 0:02:53]}  c6 {[%clk 0:02:59]} 3. Bg2 {[%clk 0:02:53]}  Bg4 {[%clk 0:03:00]} 4. O-O {[%clk 0:02:52]}  Nd7 {[%clk 0:03:00]} 5. d3 {[%clk 0:02:52]}  e5 {[%clk 0:03:00]} 6. Nbd2 {[%clk 0:02:51]}  Ngf6 {[%clk 0:03:01]} 7. c4 {[%clk 0:02:49]}  Bc5 {[%clk 0:02:42]} 8. h3 {[%clk 0:02:48]}  Bh5 {[%clk 0:02:42]} 9. cxd5 {[%clk 0:02:39]}  Nxd5 {[%clk 0:02:41]} 10. Nc4 {[%clk 0:02:27]}  Qe7 {[%clk 0:02:37]} 11. a3 {[%clk 0:02:27]}  a5 {[%clk 0:02:33]} 12. Qc2 {[%clk 0:02:27]}  O-O {[%clk 0:02:15]} 13. e4 {[%clk 0:02:26]}  Nc7 {[%clk 0:01:55]} 14. Nh4 {[%clk 0:02:17]}  Ne6 {[%clk 0:01:44]} 15. Nf5 {[%clk 0:02:15]}  Qd8 {[%clk 0:01:41]} 16. Be3 {[%clk 0:02:13]}  Bxe3 {[%clk 0:01:37]} 17. fxe3 {[%clk 0:02:06]}  f6 {[%clk 0:01:25]} 18. Ncd6 {[%clk 0:02:02]}  Qc7 {[%clk 0:01:22]} 19. Qc4 {[%clk 0:01:59]}  Bf7 {[%clk 0:01:07]} 20. Ne7+ {[%clk 0:01:51]}  Kh8 {[%clk 0:01:05]} 21. Nxf7+ {[%clk 0:01:51]}  Rxf7 {[%clk 0:01:05]} 22. Qxe6 {[%clk 0:01:51]}  Rff8 {[%clk 0:00:52]} 23. Nf5 {[%clk 0:01:46]} 1-0


[Site "https://www.chess.com"]

[Event "Titled Tuesday Blitz November 08 Early 2022"]
[White "Gabdrakhmanov, Azat"]
[Black "Koridze, Lile"]
[WhiteFideId "34189197"]
[BlackFideId "13612514"]
[WhiteElo "2254"]
[BlackElo "2050"]
[Result "0-1"]
[Round "03"]
[TimeControl "180+1"]
[Date "2022.11.09"]
[WhiteClock "0:00:16"]
[BlackClock "0:00:11"]

1. e4 {[%clk 0:03:00]}  c5 {[%clk 0:02:59]} 2. Nf3 {[%clk 0:03:01]}  d6 {[%clk 0:02:58]} 3. d4 {[%clk 0:03:01]}  cxd4 {[%clk 0:02:57]} 4. Nxd4 {[%clk 0:03:02]}  Nf6 {[%clk 0:02:56]} 5. Nc3 {[%clk 0:03:02]}  a6 {[%clk 0:02:56]} 6. Be3 {[%clk 0:03:02]}  e5 {[%clk 0:02:53]} 7. Nb3 {[%clk 0:03:02]}  Be6 {[%clk 0:02:49]} 8. Qd2 {[%clk 0:03:01]}  b5 {[%clk 0:02:49]} 9. O-O-O {[%clk 0:02:57]}  Nbd7 {[%clk 0:02:27]} 10. f4 {[%clk 0:02:57]}  exf4 {[%clk 0:01:51]} 11. Bxf4 {[%clk 0:02:55]}  Ne5 {[%clk 0:01:51]} 12. Qe1 {[%clk 0:02:40]}  Qc7 {[%clk 0:01:27]} 13. Kb1 {[%clk 0:02:26]}  Be7 {[%clk 0:01:25]} 14. Nd5 {[%clk 0:02:05]}  Nxd5 {[%clk 0:01:22]} 15. exd5 {[%clk 0:02:05]}  Bf5 {[%clk 0:01:23]} 16. Nd4 {[%clk 0:02:04]}  Bg6 {[%clk 0:01:05]} 17. Bxe5 {[%clk 0:02:00]}  dxe5 {[%clk 0:01:05]} 18. Nc6 {[%clk 0:02:00]}  Bd6 {[%clk 0:01:02]} 19. Bd3 {[%clk 0:01:57]}  O-O {[%clk 0:00:56]} 20. Bxg6 {[%clk 0:01:56]}  fxg6 {[%clk 0:00:54]} 21. Rf1 {[%clk 0:01:48]}  Rae8 {[%clk 0:00:49]} 22. Qe4 {[%clk 0:01:46]}  Qd7 {[%clk 0:00:40]} 23. a3 {[%clk 0:01:44]}  Rf5 {[%clk 0:00:36]} 24. g3 {[%clk 0:01:33]}  Ref8 {[%clk 0:00:34]} 25. Rfe1 {[%clk 0:01:33]}  Rf2 {[%clk 0:00:33]} 26. Re2 {[%clk 0:01:30]}  R2f5 {[%clk 0:00:31]} 27. Rde1 {[%clk 0:01:29]}  Re8 {[%clk 0:00:29]} 28. Qg4 {[%clk 0:01:24]}  Qf7 {[%clk 0:00:28]} 29. Qe4 {[%clk 0:01:22]}  h5 {[%clk 0:00:25]} 30. Qd3 {[%clk 0:01:20]}  Rf3 {[%clk 0:00:24]} 31. Qd2 {[%clk 0:01:18]}  Rf5 {[%clk 0:00:22]} 32. h3 {[%clk 0:01:16]}  e4 {[%clk 0:00:21]} 33. Nb4 {[%clk 0:00:23]}  Bxb4 {[%clk 0:00:19]} 34. Qxb4 {[%clk 0:00:24]}  Rxd5 {[%clk 0:00:19]} 35. Rxe4 {[%clk 0:00:24]}  Rxe4 {[%clk 0:00:18]} 36. Qxe4 {[%clk 0:00:25]}  Rd8 {[%clk 0:00:16]} 37. g4 {[%clk 0:00:21]}  hxg4 {[%clk 0:00:15]} 38. Qxg4 {[%clk 0:00:22]}  Rd6 {[%clk 0:00:14]} 39. Qc8+ {[%clk 0:00:20]}  Kh7 {[%clk 0:00:14]} 40. Qg4 {[%clk 0:00:20]}  Qf6 {[%clk 0:00:09]} 41. h4 {[%clk 0:00:20]}  Rd2 {[%clk 0:00:08]} 42. h5 {[%clk 0:00:19]}  g5 {[%clk 0:00:08]} 43. Qe4+ {[%clk 0:00:18]}  Kh6 {[%clk 0:00:08]} 44. Qe3 {[%clk 0:00:18]}  Rf2 {[%clk 0:00:08]} 45. Qb3 {[%clk 0:00:18]}  Rf1 {[%clk 0:00:07]} 46. Rxf1 {[%clk 0:00:14]}  Qxf1+ {[%clk 0:00:08]} 47. Ka2 {[%clk 0:00:15]}  Qc4 {[%clk 0:00:08]} 48. Qxc4 {[%clk 0:00:14]}  bxc4 {[%clk 0:00:09]} 49. b4 {[%clk 0:00:14]}  cxb3+ {[%clk 0:00:09]} 50. Kxb3 {[%clk 0:00:15]}  g4 {[%clk 0:00:10]} 51. c4 {[%clk 0:00:15]}  g3 {[%clk 0:00:10]} 52. c5 {[%clk 0:00:16]}  g2 {[%clk 0:00:11]} 53. c6 {[%clk 0:00:16]}  g1=Q {[%clk 0:00:11]} 0-1


[Site "https://www.chess.com"]

[Event "Titled Tuesday Blitz November 08 Early 2022"]
[White "Galchenko, Matvey"]
[Black "Thomforde-Toates, Noah"]
[WhiteFideId "24175480"]
[BlackFideId "30951992"]
[WhiteElo "2403"]
[BlackElo "2622"]
[Result "1-0"]
[Round "03"]
[TimeControl "180+1"]
[Date "2022.11.09"]
[WhiteClock "0:00:16"]
[BlackClock "0:00:12"]

1. f4 {[%clk 0:02:56]}  d6 {[%clk 0:02:58]} 2. Nf3 {[%clk 0:02:57]}  Nd7 {[%clk 0:02:58]} 3. g3 {[%clk 0:02:55]}  Ngf6 {[%clk 0:02:58]} 4. Bg2 {[%clk 0:02:55]}  g6 {[%clk 0:02:58]} 5. d3 {[%clk 0:02:54]}  Bg7 {[%clk 0:02:59]} 6. O-O {[%clk 0:02:55]}  O-O {[%clk 0:02:59]} 7. Nc3 {[%clk 0:02:56]}  e5 {[%clk 0:02:59]} 8. e4 {[%clk 0:02:57]}  c6 {[%clk 0:02:57]} 9. f5 {[%clk 0:02:56]}  d5 {[%clk 0:02:47]} 10. Nh4 {[%clk 0:02:52]}  Nc5 {[%clk 0:02:32]} 11. Qe1 {[%clk 0:02:52]}  Ne8 {[%clk 0:02:23]} 12. exd5 {[%clk 0:02:50]}  Nc7 {[%clk 0:02:10]} 13. dxc6 {[%clk 0:02:46]}  bxc6 {[%clk 0:02:10]} 14. Bxc6 {[%clk 0:02:46]}  Bb7 {[%clk 0:02:11]} 15. Bxb7 {[%clk 0:02:45]}  Nxb7 {[%clk 0:02:12]} 16. Ne4 {[%clk 0:02:43]}  Nd5 {[%clk 0:02:06]} 17. Qf2 {[%clk 0:02:42]}  Qb6 {[%clk 0:02:02]} 18. f6 {[%clk 0:02:38]}  Qxf2+ {[%clk 0:01:56]} 19. Rxf2 {[%clk 0:02:39]}  Bh8 {[%clk 0:01:56]} 20. Bg5 {[%clk 0:02:33]}  Rfc8 {[%clk 0:01:54]} 21. Nf3 {[%clk 0:02:33]}  Re8 {[%clk 0:01:42]} 22. Re1 {[%clk 0:02:33]}  Rac8 {[%clk 0:01:42]} 23. a3 {[%clk 0:02:32]}  Re6 {[%clk 0:01:41]} 24. c4 {[%clk 0:02:17]}  Nb6 {[%clk 0:01:20]} 25. b4 {[%clk 0:02:07]}  Rd8 {[%clk 0:01:17]} 26. Rd2 {[%clk 0:01:59]}  a5 {[%clk 0:00:50]} 27. Nc5 {[%clk 0:01:34]}  Nxc5 {[%clk 0:00:46]} 28. bxc5 {[%clk 0:01:34]}  Na4 {[%clk 0:00:32]} 29. d4 {[%clk 0:01:33]}  Bxf6 {[%clk 0:00:28]} 30. d5 {[%clk 0:01:14]}  Bxg5 {[%clk 0:00:24]} 31. Nxg5 {[%clk 0:01:14]}  Ra6 {[%clk 0:00:20]} 32. c6 {[%clk 0:01:05]}  Nb6 {[%clk 0:00:17]} 33. c7 {[%clk 0:00:55]}  Rc8 {[%clk 0:00:15]} 34. d6 {[%clk 0:00:54]}  Nd7 {[%clk 0:00:15]} 35. Ne4 {[%clk 0:00:37]}  Rc6 {[%clk 0:00:15]} 36. Rb1 {[%clk 0:00:37]}  Kg7 {[%clk 0:00:13]} 37. Nc3 {[%clk 0:00:14]}  Rxc4 {[%clk 0:00:13]} 38. Nd5 {[%clk 0:00:14]}  Rc6 {[%clk 0:00:05]} 39. Ne7 {[%clk 0:00:15]}  Rxd6 {[%clk 0:00:06]} 40. Rxd6 {[%clk 0:00:13]}  Rxc7 {[%clk 0:00:06]} 41. Nd5 {[%clk 0:00:13]}  Ra7 {[%clk 0:00:06]} 42. Nc3 {[%clk 0:00:12]}  Nf8 {[%clk 0:00:05]} 43. Nb5 {[%clk 0:00:11]}  Re7 {[%clk 0:00:05]} 44. a4 {[%clk 0:00:11]}  e4 {[%clk 0:00:06]} 45. Re1 {[%clk 0:00:10]}  f5 {[%clk 0:00:06]} 46. Ra6 {[%clk 0:00:10]}  Ne6 {[%clk 0:00:07]} 47. Ra7 {[%clk 0:00:10]}  Rxa7 {[%clk 0:00:06]} 48. Nxa7 {[%clk 0:00:11]}  Nc5 {[%clk 0:00:07]} 49. Ra1 {[%clk 0:00:12]}  g5 {[%clk 0:00:07]} 50. Nc6 {[%clk 0:00:12]}  f4 {[%clk 0:00:07]} 51. gxf4 {[%clk 0:00:11]}  gxf4 {[%clk 0:00:08]} 52. Nxa5 {[%clk 0:00:11]}  Kf6 {[%clk 0:00:09]} 53. Nc4 {[%clk 0:00:12]}  Kf5 {[%clk 0:00:09]} 54. a5 {[%clk 0:00:12]}  f3 {[%clk 0:00:09]} 55. a6 {[%clk 0:00:13]}  Kf4 {[%clk 0:00:08]} 56. a7 {[%clk 0:00:13]}  e3 {[%clk 0:00:09]} 57. a8=Q {[%clk 0:00:13]}  f2+ {[%clk 0:00:10]} 58. Kg2 {[%clk 0:00:14]}  Nd3 {[%clk 0:00:10]} 59. Qf3+ {[%clk 0:00:15]}  Kg5 {[%clk 0:00:10]} 60. Qxe3+ {[%clk 0:00:16]}  Nf4+ {[%clk 0:00:11]} 61. Kg3 {[%clk 0:00:16]}  h5 {[%clk 0:00:11]} 62. Qxf4+ {[%clk 0:00:16]}  Kg6 {[%clk 0:00:12]} 1-0


[Site "https://www.chess.com"]

[Event "Titled Tuesday Blitz November 08 Early 2022"]
[White "Garcia Ramos, Daniel"]
[Black "Nugumanov, Bakhtiyar"]
[WhiteFideId "32010311"]
[BlackFideId "13701797"]
[WhiteElo "2357"]
[BlackElo "2287"]
[Result "1-0"]
[Round "03"]
[TimeControl "180+1"]
[Date "2022.11.09"]
[WhiteClock "0:01:28"]
[BlackClock "0:00:01"]

1. e4 {[%clk 0:03:00]}  d6 {[%clk 0:02:54]} 2. d4 {[%clk 0:02:55]}  Nf6 {[%clk 0:02:50]} 3. Bd3 {[%clk 0:02:52]}  e5 {[%clk 0:02:46]} 4. c3 {[%clk 0:02:47]}  d5 {[%clk 0:02:44]} 5. exd5 {[%clk 0:02:46]}  exd4 {[%clk 0:02:03]} 6. Nf3 {[%clk 0:02:23]}  Bg4 {[%clk 0:01:50]} 7. Qe2+ {[%clk 0:02:13]}  Be7 {[%clk 0:01:43]} 8. cxd4 {[%clk 0:02:02]}  O-O {[%clk 0:01:28]} 9. Nc3 {[%clk 0:01:58]}  Re8 {[%clk 0:00:47]} 10. O-O {[%clk 0:01:48]}  h6 {[%clk 0:00:11]} 11. h3 {[%clk 0:01:46]}  Bh5 {[%clk 0:00:10]} 12. Bc2 {[%clk 0:01:40]}  Nxd5 {[%clk 0:00:03]} 13. Qd3 {[%clk 0:01:30]}  Bg6 {[%clk 0:00:01]} 14. Qd1 {[%clk 0:01:27]}  Bxc2 {[%clk 0:00:01]} 15. Qxc2 {[%clk 0:01:28]} 1-0


[Site "https://www.chess.com"]

[Event "Titled Tuesday Blitz November 08 Early 2022"]
[White "Goltsev, Dmitry"]
[Black "Chigaev, Maksim"]
[WhiteFideId "24176710"]
[BlackFideId "4108116"]
[WhiteElo "2289"]
[BlackElo "2541"]
[Result "0-1"]
[Round "03"]
[TimeControl "180+1"]
[Date "2022.11.08"]
[WhiteClock "0:00:05"]
[BlackClock "0:00:40"]

1. e4 {[%clk 0:03:00]}  c5 {[%clk 0:03:00]} 2. Nf3 {[%clk 0:03:00]}  e6 {[%clk 0:03:01]} 3. d4 {[%clk 0:03:01]}  cxd4 {[%clk 0:03:02]} 4. Nxd4 {[%clk 0:03:02]}  Nf6 {[%clk 0:03:02]} 5. Nc3 {[%clk 0:03:02]}  Nc6 {[%clk 0:03:03]} 6. Be2 {[%clk 0:03:02]}  Be7 {[%clk 0:02:57]} 7. O-O {[%clk 0:03:02]}  Qc7 {[%clk 0:02:56]} 8. Qd3 {[%clk 0:03:00]}  a6 {[%clk 0:02:55]} 9. Rd1 {[%clk 0:02:59]}  O-O {[%clk 0:02:54]} 10. a3 {[%clk 0:02:50]}  b5 {[%clk 0:02:49]} 11. Bg5 {[%clk 0:02:39]}  Bb7 {[%clk 0:02:40]} 12. Qg3 {[%clk 0:02:33]}  Qxg3 {[%clk 0:02:37]} 13. hxg3 {[%clk 0:02:34]}  h6 {[%clk 0:02:21]} 14. Be3 {[%clk 0:02:29]}  Nxd4 {[%clk 0:02:17]} 15. Bxd4 {[%clk 0:02:30]}  Nxe4 {[%clk 0:02:14]} 16. Nxe4 {[%clk 0:02:07]}  Bxe4 {[%clk 0:02:15]} 17. c4 {[%clk 0:02:08]}  Bc6 {[%clk 0:02:00]} 18. b4 {[%clk 0:02:02]}  f5 {[%clk 0:01:52]} 19. Be5 {[%clk 0:01:51]}  Kf7 {[%clk 0:01:46]} 20. Rd2 {[%clk 0:01:39]}  Bf6 {[%clk 0:01:42]} 21. f4 {[%clk 0:01:38]}  Bxe5 {[%clk 0:01:41]} 22. fxe5 {[%clk 0:01:39]}  Ke7 {[%clk 0:01:41]} 23. Rad1 {[%clk 0:01:31]}  Ra7 {[%clk 0:01:40]} 24. Rd4 {[%clk 0:01:27]}  Rb8 {[%clk 0:01:34]} 25. Kh2 {[%clk 0:01:25]}  a5 {[%clk 0:01:26]} 26. bxa5 {[%clk 0:01:10]}  bxc4 {[%clk 0:01:22]} 27. Rxc4 {[%clk 0:00:43]}  Rb2 {[%clk 0:01:07]} 28. Bf1 {[%clk 0:00:30]}  Rxa5 {[%clk 0:01:05]} 29. g4 {[%clk 0:00:26]}  Rxe5 {[%clk 0:01:01]} 30. gxf5 {[%clk 0:00:25]}  Rxf5 {[%clk 0:01:02]} 31. Rg4 {[%clk 0:00:22]}  g5 {[%clk 0:00:59]} 32. Rg3 {[%clk 0:00:22]}  h5 {[%clk 0:00:57]} 33. Bd3 {[%clk 0:00:18]}  h4 {[%clk 0:00:47]} 34. Rg4 {[%clk 0:00:17]}  Rd5 {[%clk 0:00:44]} 35. a4 {[%clk 0:00:09]}  Ra2 {[%clk 0:00:43]} 36. Bc4 {[%clk 0:00:06]}  Rxg2+ {[%clk 0:00:39]} 37. Rxg2 {[%clk 0:00:04]}  Rxd1 {[%clk 0:00:40]} 38. Rxg5 {[%clk 0:00:05]}  Rh1# {[%clk 0:00:40]} 0-1


[Site "https://www.chess.com"]

[Event "Titled Tuesday Blitz November 08 Early 2022"]
[White "Goltseva, Ekaterina"]
[Black "Rosh Jain"]
[WhiteFideId "24173770"]
[BlackFideId "25789465"]
[WhiteElo "2200"]
[BlackElo "2233"]
[Result "1/2-1/2"]
[Round "03"]
[TimeControl "180+1"]
[Date "2022.11.09"]
[WhiteClock "0:00:11"]
[BlackClock "0:00:05"]

1. d4 {[%clk 0:02:44]}  Nf6 {[%clk 0:02:59]} 2. c4 {[%clk 0:02:43]}  e6 {[%clk 0:02:59]} 3. Nc3 {[%clk 0:02:35]}  d5 {[%clk 0:02:59]} 4. Nf3 {[%clk 0:02:34]}  Be7 {[%clk 0:02:59]} 5. Bg5 {[%clk 0:02:29]}  Nbd7 {[%clk 0:02:58]} 6. e3 {[%clk 0:02:29]}  O-O {[%clk 0:02:55]} 7. Rc1 {[%clk 0:02:25]}  Ne4 {[%clk 0:02:54]} 8. Bxe7 {[%clk 0:02:21]}  Qxe7 {[%clk 0:02:52]} 9. cxd5 {[%clk 0:02:13]}  Nxc3 {[%clk 0:02:51]} 10. Rxc3 {[%clk 0:02:13]}  exd5 {[%clk 0:02:50]} 11. Rxc7 {[%clk 0:02:13]}  Qd6 {[%clk 0:02:46]} 12. Rc1 {[%clk 0:01:56]}  Nf6 {[%clk 0:02:44]} 13. Bd3 {[%clk 0:01:55]}  Bg4 {[%clk 0:02:43]} 14. O-O {[%clk 0:01:52]}  Ne4 {[%clk 0:02:43]} 15. Be2 {[%clk 0:01:45]}  Bf5 {[%clk 0:02:29]} 16. Ne5 {[%clk 0:01:44]}  f6 {[%clk 0:02:27]} 17. Nd3 {[%clk 0:01:43]}  b6 {[%clk 0:02:24]} 18. Bg4 {[%clk 0:01:31]}  Bg6 {[%clk 0:02:11]} 19. Nf4 {[%clk 0:01:23]}  Bf7 {[%clk 0:02:07]} 20. Qc2 {[%clk 0:01:14]}  Qb4 {[%clk 0:02:00]} 21. a3 {[%clk 0:01:12]}  Qb5 {[%clk 0:01:58]} 22. Be2 {[%clk 0:01:08]}  Qd7 {[%clk 0:01:44]} 23. Qc7 {[%clk 0:01:07]}  Qf5 {[%clk 0:01:41]} 24. Qb7 {[%clk 0:00:56]}  Rfb8 {[%clk 0:01:36]} 25. Qa6 {[%clk 0:00:54]}  Rc8 {[%clk 0:01:25]} 26. Qa4 {[%clk 0:00:45]}  Nd2 {[%clk 0:01:02]} 27. Rfd1 {[%clk 0:00:42]}  Nc4 {[%clk 0:00:59]} 28. Bxc4 {[%clk 0:00:37]}  dxc4 {[%clk 0:00:58]} 29. Qc2 {[%clk 0:00:29]}  Qa5 {[%clk 0:00:26]} 30. e4 {[%clk 0:00:26]}  Be8 {[%clk 0:00:25]} 31. Qe2 {[%clk 0:00:24]}  Ba4 {[%clk 0:00:22]} 32. Re1 {[%clk 0:00:23]}  Bb5 {[%clk 0:00:19]} 33. Rc3 {[%clk 0:00:19]}  Ba6 {[%clk 0:00:12]} 34. e5 {[%clk 0:00:18]}  fxe5 {[%clk 0:00:12]} 35. dxe5 {[%clk 0:00:19]}  Rf8 {[%clk 0:00:07]} 36. Qg4 {[%clk 0:00:19]}  Rae8 {[%clk 0:00:04]} 37. h3 {[%clk 0:00:14]}  Rxe5 {[%clk 0:00:04]} 38. Rxe5 {[%clk 0:00:11]}  Qxe5 {[%clk 0:00:05]} 39. Ne6 {[%clk 0:00:08]}  Rf7 {[%clk 0:00:04]} 40. Ng5 {[%clk 0:00:06]}  Qe1+ {[%clk 0:00:03]} 41. Kh2 {[%clk 0:00:06]}  Qe5+ {[%clk 0:00:03]} 42. Rg3 {[%clk 0:00:04]}  Rxf2 {[%clk 0:00:02]} 43. Ne6 {[%clk 0:00:02]}  Rf7 {[%clk 0:00:01]} 44. Ng5 {[%clk 0:00:02]}  Rf8 {[%clk 0:00:01]} 45. Nf3 {[%clk 0:00:03]}  Qf6 {[%clk 0:00:01]} 46. Ng5 {[%clk 0:00:02]}  Bc8 {[%clk 0:00:01]} 47. Qh4 {[%clk 0:00:03]}  Bf5 {[%clk 0:00:01]} 48. Qh5 {[%clk 0:00:01]}  Kh8 {[%clk 0:00:01]} 49. Qe2 {[%clk 0:00:02]}  h6 {[%clk 0:00:01]} 50. Nf3 {[%clk 0:00:01]}  Bg6 {[%clk 0:00:02]} 51. Qe5 {[%clk 0:00:02]}  Bd3 {[%clk 0:00:01]} 52. Qxf6 {[%clk 0:00:02]}  Rxf6 {[%clk 0:00:01]} 53. Ne5 {[%clk 0:00:03]}  Rd6 {[%clk 0:00:01]} 54. Rf3 {[%clk 0:00:02]}  Kg8 {[%clk 0:00:01]} 55. Rf4 {[%clk 0:00:01]}  Rd5 {[%clk 0:00:01]} 56. Nxc4 {[%clk 0:00:01]}  Bxc4 {[%clk 0:00:01]} 57. Rxc4 {[%clk 0:00:02]}  Rb5 {[%clk 0:00:02]} 58. Rc8+ {[%clk 0:00:03]}  Kh7 {[%clk 0:00:01]} 59. b4 {[%clk 0:00:03]}  a5 {[%clk 0:00:01]} 60. bxa5 {[%clk 0:00:02]}  Rxa5 {[%clk 0:00:01]} 61. Rb8 {[%clk 0:00:02]}  b5 {[%clk 0:00:02]} 62. Rb6 {[%clk 0:00:03]}  Rxa3 {[%clk 0:00:02]} 63. Rxb5 {[%clk 0:00:03]}  Ra4 {[%clk 0:00:03]} 64. Rb7 {[%clk 0:00:04]}  Rc4 {[%clk 0:00:03]} 65. Ra7 {[%clk 0:00:04]}  Rc6 {[%clk 0:00:04]} 66. Rb7 {[%clk 0:00:04]}  Rf6 {[%clk 0:00:04]} 67. Ra7 {[%clk 0:00:05]}  Kg6 {[%clk 0:00:04]} 68. Rb7 {[%clk 0:00:05]}  Rf7 {[%clk 0:00:05]} 69. Rb6+ {[%clk 0:00:05]}  Kg5 {[%clk 0:00:04]} 70. Rb5+ {[%clk 0:00:05]}  Rf5 {[%clk 0:00:04]} 71. Rb7 {[%clk 0:00:05]}  g6 {[%clk 0:00:05]} 72. Rb6 {[%clk 0:00:06]}  h5 {[%clk 0:00:04]} 73. Ra6 {[%clk 0:00:06]}  Kh6 {[%clk 0:00:04]} 74. Rb6 {[%clk 0:00:06]}  h4 {[%clk 0:00:04]} 75. Ra6 {[%clk 0:00:07]}  Kh5 {[%clk 0:00:04]} 76. Rb6 {[%clk 0:00:07]}  g5 {[%clk 0:00:05]} 77. Rb8 {[%clk 0:00:08]}  Rf6 {[%clk 0:00:05]} 78. Rh8+ {[%clk 0:00:08]}  Rh6 {[%clk 0:00:05]} 79. Rd8 {[%clk 0:00:09]}  Rg6 {[%clk 0:00:04]} 80. Rd5 {[%clk 0:00:09]}  Kh6 {[%clk 0:00:04]} 81. Re5 {[%clk 0:00:09]}  g4 {[%clk 0:00:04]} 82. hxg4 {[%clk 0:00:10]}  Rxg4 {[%clk 0:00:05]} 83. Re6+ {[%clk 0:00:10]}  Kh5 {[%clk 0:00:05]} 84. Re5+ {[%clk 0:00:10]}  Rg5 {[%clk 0:00:05]} 85. Re8 {[%clk 0:00:10]}  Kg4 {[%clk 0:00:05]} 86. Re4+ {[%clk 0:00:10]}  Kh5 {[%clk 0:00:05]} 87. Re8 {[%clk 0:00:11]}  Kg4 {[%clk 0:00:05]} 88. Re4+ {[%clk 0:00:11]}  Kh5 {[%clk 0:00:05]} 89. Re8 {[%clk 0:00:11]} 1/2-1/2


[Site "https://www.chess.com"]